fUST/lending_fUST_20250305
["ID","MTS","AMOUNT","RATE_DAILY","PERIOD"]
[355419008,1741128636532,-217.571404,0.0002489,7]
[355419009,1741128636543,-151.0,0.0002489,7]
[355419010,1741128636552,-217.571404,0.0002489,7]
[355419011,1741128636561,-151.0,0.0002489,7]
[355419012,1741128636571,-151.0,0.0002489,7]
[355419013,1741128636581,-151.0,0.0002489,7]
[355419014,1741128636591,-1737.596689,0.0002489,7]
[355419015,1741128636600,-1737.596689,0.0002489,7]
[355419016,1741128636610,-151.0,0.0002489,7]
[355419017,1741128636620,-264.122332,0.0002489,7]
[355419018,1741128636630,-207.045328,0.0002489,7]
[355419019,1741128636639,-151.0,0.0002489,7]
[355419020,1741128636649,-388.585071,0.0002489,7]
[355419021,1741128636659,-2939.955449,0.0002489,7]
[355419022,1741128636668,-388.585071,0.0002489,7]
[355419023,1741128636683,-187.13194,0.0002489,7]
[355419024,1741128636692,-151.0,0.0002489,7]
[355419025,1741128636702,-187.13194,0.0002489,7]
[355419026,1741128636711,-566.760929,0.0002489,7]
[355419027,1741128636722,-566.760929,0.0002489,7]
[355419028,1741128636732,-795.103085,0.0002489,7]
[355419029,1741128636741,-795.103085,0.0002489,7]
[355419030,1741128636751,-27519.00772416,0.0002489,2]
[355419031,1741128637014,-26329.83228843,0.0002489,2]
[355419032,1741128637027,-550.0,0.0002489,2]
[355419052,1741128638521,-247.62,0.00022323,3]
[355419054,1741128638531,-500.0,0.00023314,2]
[355419055,1741128638540,-209.1225202,0.00023314,2]
[355419103,1741128640813,-290.8774798,0.00023314,2]
[355419104,1741128640823,-500.0,0.00023314,2]
[355419105,1741128640832,-500.0,0.00023314,2]
[355419107,1741128640842,-500.0,0.00023314,2]
[355419109,1741128640851,-500.0,0.00023314,2]
[355419111,1741128640860,-156.89405562,0.00023314,2]
[355419114,1741128640879,-343.10594438,0.00023314,2]
[355419116,1741128640888,-119.2275876,0.00023314,2]
[355419144,1741128643666,-309.5281487,0.00023314,2]
[355419145,1741128643807,-71.2442637,0.00023314,2]
[355419146,1741128643816,-500.0,0.00023314,2]
[355419147,1741128643825,-500.0,0.00023314,2]
[355419148,1741128643835,-500.0,0.00023314,2]
[355419149,1741128643844,-231.1807281,0.00023314,2]
[355419155,1741128646648,-268.8192719,0.00023314,2]
[355419156,1741128646844,-500.0,0.00023314,2]
[355419157,1741128646854,-500.0,0.00023314,2]
[355419158,1741128646864,-242.86821432,0.00023314,2]
[355419161,1741129016659,504.0,0.00016022,2]
[355419162,1741129304915,-400.0,0.00019022,2]
[355419182,1741129831911,-1039.11904932,0.000189,2]
[355419183,1741129831921,-290.91204627,0.00018922,2]
[355419184,1741129831930,-500.0,0.00019022,2]
[355419185,1741129831940,-500.0,0.00019022,2]
[355419186,1741129831949,-979.82903476,0.00019022,2]
[355419187,1741129831959,-161.77,0.000225,2]
[355419188,1741129831968,-300.0,0.00022509,2]
[355419189,1741129831978,-24900.0,0.0002251,2]
[355419190,1741129831987,-200.0,0.0002263,2]
[355419191,1741129831997,-250.0,0.00022719,2]
[355419192,1741129832011,-401.539572,0.00022721,2]
[355419193,1741129832025,-417.34128565,0.00023,2]
[355419194,1741129832035,-500.0,0.00023,2]
[355419195,1741129832045,-1790.9526508,0.00023096,2]
[355419196,1741129832054,-161.77,0.0002329,2]
[355419197,1741129832064,-2000.0,0.000233,7]
[355419198,1741129832074,-356.55,0.00023316,7]
[355419199,1741129832086,-17.57490582,0.00023316,7]
[355419200,1741129832098,-135.27739618,0.00023316,7]
[355419201,1741129832108,-356.55,0.00023316,7]
[355419202,1741129832118,-152.852302,0.00023316,7]
[355419203,1741129832127,-356.55,0.00023333,7]
[355419205,1741129832136,-356.55,0.00023333,7]
[355419207,1741129832145,-152.852302,0.00023333,7]
[355419209,1741129832155,-152.852302,0.00023333,7]
[355419211,1741129832165,-356.55,0.00023333,7]
[355419213,1741129832174,-356.55,0.00023333,7]
[355419215,1741129832184,-152.852302,0.00023333,7]
[355419217,1741129832194,-152.852302,0.00023333,7]
[355419219,1741129832203,-1039.11904932,0.000239,2]
[355419221,1741129832213,-782.57339744,0.000239,3]
[355419223,1741129832222,-1780.4756258,0.00024392,2]
[355419225,1741129832231,-420.0,0.00024447,2]
[355419227,1741129832241,-161.77,0.00024648,2]
[355419230,1741129832251,-356.55,0.00024658,7]
[355419232,1741129832261,-356.55,0.00024658,7]
[355419234,1741129832270,-152.852302,0.00024658,7]
[355419236,1741129832280,-152.852302,0.00024658,7]
[355419238,1741129832290,-356.55,0.00024658,7]
[355419240,1741129832299,-58.63808342,0.00024658,7]
[355419258,1741129837811,-297.91191658,0.00024658,7]
[355419260,1741129837821,-152.852302,0.00024658,7]
[355419262,1741129837831,-152.852302,0.00024658,7]
[355419264,1741129837840,-356.55,0.000248,7]
[355419266,1741129837850,-356.55,0.000248,7]
[355419268,1741129837859,-152.852302,0.000248,7]
[355419270,1741129837868,-152.852302,0.000248,7]
[355419271,1741129837878,-356.55,0.000248,7]
[355419272,1741129837887,-356.55,0.000248,7]
[355419273,1741129837896,-152.852302,0.000248,7]
[355419274,1741129837906,-152.852302,0.000248,7]
[355419275,1741129837915,-150.0,0.000248,2]
[355419276,1741129837924,-662.24307099,0.00024848,2]
[355419277,1741129837935,-1243.2600322,0.00024848,2]
[355419278,1741129837944,-161.77,0.00024862,2]
[355419279,1741129837953,-206.35,0.00024871,3]
[355419280,1741129837963,-619.05,0.00024871,3]
[355419281,1741129837972,-2953.10862636,0.00024872,2]
[355419282,1741129837981,-500.0,0.00024873,2]
[355419283,1741129837990,-500.0,0.00024873,2]
[355419284,1741129837999,-500.0,0.00024873,2]
[355419285,1741129838008,-500.0,0.00024873,2]
[355419286,1741129838018,-500.0,0.00024873,2]
[355419287,1741129838027,-500.0,0.00024873,2]
[355419288,1741129838036,-500.0,0.00024873,2]
[355419289,1741129838045,-500.0,0.00024873,2]
[355419291,1741129838056,-500.0,0.00024873,2]
[355419293,1741129838066,-502.68210109,0.00024873,2]
[355419295,1741129838076,-500.0,0.00024873,2]
[355419297,1741129838091,-500.0,0.00024873,2]
[355419299,1741129838100,-500.0,0.00024873,2]
[355419301,1741129838110,-500.0,0.00024873,2]
[355419303,1741129838120,-500.0,0.00024873,2]
[355419305,1741129838131,-500.0,0.00024873,2]
[355419307,1741129838140,-302.63379767,0.00024873,2]
[355419309,1741129838150,-197.09615136,0.0002488,2]
[355419312,1741129838160,-170.59877958,0.0002488,2]
[355419313,1741129838169,-500.0,0.0002488,2]
[355419316,1741129838180,-500.0,0.0002488,2]
[355419318,1741129838189,-500.0,0.0002488,2]
[355419320,1741129838198,-500.0,0.0002488,2]
[355419322,1741129838208,-500.0,0.0002488,2]
[355419324,1741129838219,-500.0,0.0002488,2]
[355419325,1741129838228,-500.0,0.0002488,2]
[355419328,1741129838238,-500.0,0.0002488,2]
[355419329,1741129838248,-500.0,0.0002488,2]
[355419332,1741129838258,-500.0,0.0002488,2]
[355419334,1741129838267,-500.0,0.0002488,2]
[355419335,1741129838276,-500.0,0.0002488,2]
[355419337,1741129838286,-500.0,0.0002488,2]
[355419339,1741129838295,-481.19622053,0.0002488,2]
[355419342,1741129838305,-500.0,0.0002488,2]
[355419343,1741129838314,-500.0,0.0002488,2]
[355419345,1741129838324,-500.0,0.0002488,2]
[355419347,1741129838334,-500.0,0.0002488,2]
[355419350,1741129838344,-500.0,0.0002488,2]
[355419352,1741129838353,-500.0,0.0002488,2]
[355419354,1741129838363,-500.0,0.0002488,2]
[355419356,1741129838372,-500.0,0.0002488,2]
[355419358,1741129838383,-500.0,0.0002488,2]
[355419360,1741129838396,-500.0,0.0002488,2]
[355419362,1741129838406,-500.0,0.0002488,2]
[355419364,1741129838415,-500.0,0.0002488,2]
[355419366,1741129838424,-191.19283946,0.00024885,2]
[355421628,1741131033161,-460.59989488,0.00018644,3]
[355421629,1741131033171,-500.0,0.00019022,2]
[355421630,1741131033181,-600.0,0.00019022,2]
[355421631,1741131033191,-500.0,0.00019022,2]
[355421632,1741131033201,-500.0,0.00019022,2]
[355421633,1741131033211,-300.0,0.00020609,2]
[355421634,1741131033221,-16325.92070289,0.0002061,2]
[355421635,1741131033230,-420.0,0.00022427,2]
[355421636,1741131033241,-1165.7948988,0.0002278,2]
[355421637,1741131033251,-756.48761768,0.000229,3]
[355421638,1741131033262,-24900.0,0.00023151,2]
[355421639,1741131033271,-200.769786,0.00023292,2]
[355421640,1741131033281,-202.0415469,0.00023375,2]
[355421641,1741131033290,-200.0,0.00023467,2]
[355421642,1741131033300,-3302.090607,0.00023567,2]
[355421643,1741131033310,-1335.3567193,0.00024392,2]
[355421644,1741131033319,-587.0,0.00024405,2]
[355421645,1741131033330,-4402.40317789,0.00024783,2]
[355421646,1741131033340,-183.547803,0.000248,2]
[355421647,1741131033349,-412.7,0.00024871,3]
[355421648,1741131033359,-1735.39103765,0.00024872,2]
[355421649,1741131033369,-500.0,0.00024873,2]
[355421650,1741131033378,-500.42651217,0.00024873,2]
[355421651,1741131033388,-500.0,0.00024873,2]
[355421652,1741131033398,-500.0,0.00024873,2]
[355421653,1741131033407,-500.0,0.00024873,2]
[355421654,1741131033417,-500.0,0.00024873,2]
[355421655,1741131033426,-500.0,0.00024873,2]
[355421656,1741131033435,-500.0,0.00024873,2]
[355421657,1741131033447,-500.0,0.00024873,2]
[355421658,1741131033457,-500.0,0.00024873,2]
[355421659,1741131033468,-501.94280497,0.00024873,2]
[355421660,1741131033478,-500.0,0.00024873,2]
[355421661,1741131033488,-500.0,0.00024873,2]
[355421662,1741131033497,-500.0,0.00024873,2]
[355421663,1741131033506,-500.0,0.00024873,2]
[355421664,1741131033515,-500.0,0.0002488,2]
[355421665,1741131033526,-500.0,0.0002488,2]
[355421666,1741131033536,-214.14497239,0.0002488,2]
[355421667,1741131033545,-500.0,0.0002488,2]
[355421668,1741131033554,-500.0,0.0002488,2]
[355421669,1741131033564,-1295.02367668,0.00024881,5]
[355421670,1741131033573,-11224.33046943,0.00024881,5]
[355421671,1741131033583,-800.0,0.00024885,2]
[355421672,1741131033593,-864.0,0.00024885,2]
[355421673,1741131033603,-1451.895382,0.00024885,2]
[355421674,1741131033612,-974.52369881,0.00024886,2]
[355421675,1741131033622,-151.0,0.00024889,2]
[355421676,1741131033632,-200.58,0.00024899,2]
[355421677,1741131033642,-403.24,0.000249,7]
[355421678,1741131033652,-70262.3030535,0.000249,2]
[355421679,1741131033662,-5148.05562631,0.00024948,2]
[355421680,1741131033672,-151.0,0.0002499,7]
[355421681,1741131033682,-151.0,0.0002499,7]
[355421682,1741131033692,-229.935949,0.0002499,7]
[355421683,1741131033703,-229.935949,0.0002499,7]
[355421684,1741131033713,-151.0,0.0002499,7]
[355421685,1741131033724,-4981.13454676,0.00025,2]
[355421686,1741131033734,-200.58,0.00026269,2]
[355421687,1741131033744,-823.0,0.00026558,2]
[355421688,1741131033754,-500.0,0.00026617,2]
[355421689,1741131033765,-500.0,0.00026617,2]
[355421690,1741131033775,-500.0,0.00026617,2]
[355421691,1741131033786,-500.0,0.00026617,2]
[355421692,1741131033796,-586.29554786,0.00026617,2]
[355421693,1741131033807,-281.27268403,0.00026617,2]
[355421694,1741131033817,-70262.3030535,0.00026618,2]
[355421695,1741131033828,-1735.39103765,0.00026618,2]
[355421696,1741131033838,-151.0,0.00026618,7]
[355421697,1741131033847,-151.0,0.00026628,7]
[355421698,1741131033857,-151.0,0.00026628,7]
[355421699,1741131033867,-186.994524,0.00026628,7]
[355421700,1741131033877,-186.994524,0.00026628,7]
[355421701,1741131033886,-151.0,0.00026628,7]
[355421702,1741131033896,-151.0,0.00026628,7]
[355421703,1741131033906,-257.424856,0.00026628,7]
[355421704,1741131033916,-257.424856,0.00026628,7]
[355421705,1741131033925,-582.640656,0.00026628,7]
[355421706,1741131033935,-582.640656,0.00026628,7]
[355421707,1741131033945,-151.421854,0.00026628,7]
[355421708,1741131033955,-333.436763,0.00026628,7]
[355421709,1741131033965,-333.436763,0.00026628,7]
[355421710,1741131033976,-151.0,0.00026628,7]
[355421711,1741131033986,-390.409575,0.00026628,7]
[355421712,1741131033996,-151.0,0.00026628,7]
[355421713,1741131034006,-151.0,0.00026628,7]
[355421714,1741131034016,-151.0,0.00026628,7]
[355421715,1741131034026,-390.409575,0.00026628,7]
[355421716,1741131034035,-151.0,0.00026628,7]
[355421717,1741131034045,-151.0,0.00026628,7]
[355421718,1741131034057,-151.0,0.00026628,7]
[355421719,1741131034067,-160.0,0.00026628,7]
[355421720,1741131034077,-283.380464,0.00026628,7]
[355421721,1741131034087,-283.380464,0.00026628,7]
[355421722,1741131034096,-151.0,0.00026628,7]
[355421723,1741131034106,-151.0,0.00026628,7]
[355421724,1741131034249,-694.43459,0.00026628,7]
[355421725,1741131034259,-694.43459,0.00026628,7]
[355421726,1741131034268,-2351.964359,0.00026628,7]
[355421727,1741131034278,-151.0,0.00026628,7]
[355421728,1741131034287,-183.179677,0.00026628,7]
[355421729,1741131034296,-183.179677,0.00026628,7]
[355421730,1741131034306,-156.593923,0.00026892,2]
[355421731,1741131034315,-200.0,0.00027,120]
[355421732,1741131034325,-200.0,0.00027,120]
[355421733,1741131034334,-5267.523977,0.000271,2]
[355421734,1741131034343,-2493.75272792,0.00027267,2]
[355421735,1741131034353,-70262.3030535,0.00027367,2]
[355421736,1741131034362,-1735.39103765,0.00027367,2]
[355421737,1741131034372,-151.0,0.00027367,7]
[355421738,1741131034381,-500.0,0.00027373,2]
[355421739,1741131034391,-500.0,0.00027373,2]
[355421740,1741131034401,-500.0,0.00027373,2]
[355421741,1741131034411,-500.0,0.00027373,2]
[355421742,1741131034420,-500.0,0.00027373,2]
[355421743,1741131034429,-500.0,0.00027373,2]
[355421744,1741131034439,-500.0,0.00027373,2]
[355421745,1741131034453,-500.0,0.00027373,2]
[355421746,1741131034463,-500.0,0.00027373,2]
[355421747,1741131034473,-500.0,0.00027373,2]
[355421748,1741131034482,-500.0,0.00027373,2]
[355421749,1741131034492,-500.0,0.00027373,2]
[355421750,1741131034502,-500.0,0.00027373,2]
[355421751,1741131034512,-500.0,0.00027373,2]
[355421752,1741131034521,-500.0,0.00027373,2]
[355421753,1741131034532,-500.0,0.00027373,2]
[355421754,1741131034541,-500.0,0.00027373,2]
[355421755,1741131034551,-500.0,0.00027373,2]
[355421756,1741131034560,-500.0,0.00027373,2]
[355421757,1741131034570,-508.85886196,0.00027373,2]
[355421758,1741131034579,-513.66900385,0.00027373,2]
[355421759,1741131034589,-161.67256861,0.00027373,2]
[355421760,1741131034598,-500.0,0.00027373,2]
[355421761,1741131034608,-500.0,0.00027373,2]
[355421762,1741131034617,-500.0,0.00027373,2]
[355421763,1741131034626,-500.0,0.00027373,2]
[355421764,1741131034635,-500.0,0.00027373,2]
[355421765,1741131034645,-368.47441432,0.00027373,2]
[355421766,1741131034654,-500.0,0.00027373,2]
[355421767,1741131034664,-500.0,0.00027373,2]
[355421768,1741131034674,-500.0,0.00027373,2]
[355421769,1741131034684,-500.0,0.00027373,2]
[355421770,1741131034692,-634.0,0.00027373,2]
[355421771,1741131034702,-500.0,0.00027373,2]
[355421772,1741131034711,-500.0,0.00027373,2]
[355421773,1741131034721,-151.0,0.00027377,7]
[355421774,1741131034731,-238.283349,0.00027377,7]
[355421775,1741131034740,-151.0,0.00027377,7]
[355421776,1741131034749,-151.0,0.00027377,7]
[355421777,1741131034759,-151.0,0.00027377,7]
[355421778,1741131034769,-283.380464,0.00027377,7]
[355421779,1741131034778,-283.380464,0.00027377,7]
[355421780,1741131034788,-151.0,0.00027377,7]
[355421781,1741131034798,-151.0,0.00027377,7]
[355421782,1741131034807,-694.43459,0.00027377,7]
[355421783,1741131034816,-694.43459,0.00027377,7]
[355421784,1741131034826,-2351.964359,0.00027377,7]
[355421785,1741131034835,-151.0,0.00027377,7]
[355421786,1741131034846,-151.0,0.00027377,7]
[355421787,1741131034855,-151.0,0.00027377,7]
[355421788,1741131034865,-658.579905,0.00027377,7]
[355421789,1741131034875,-658.579905,0.00027377,7]
[355421790,1741131034884,-151.0,0.00027377,7]
[355421791,1741131034893,-183.179677,0.00027377,7]
[355421792,1741131034903,-183.179677,0.00027377,7]
[355421793,1741131034912,-160.0,0.00027386,2]
[355421794,1741131034922,-160.0,0.00027386,2]
[355421795,1741131034932,-281049.212214,0.00027387,2]
[355421796,1741131034942,-6941.5641506,0.00027387,2]
[355421797,1741131034952,-151.0,0.00027387,7]
[355421798,1741131034961,-151.0,0.00027387,7]
[355421799,1741131034971,-151.0,0.00027387,7]
[355421800,1741131034980,-151.0,0.00027387,7]
[355421801,1741131034990,-229.935949,0.00027387,7]
[355421802,1741131035000,-229.935949,0.00027387,7]
[355421803,1741131035009,-229.935949,0.00027387,7]
[355421804,1741131035019,-229.935949,0.00027387,7]
[355421805,1741131035029,-197.985848,0.00027387,7]
[355421806,1741131035039,-151.0,0.00027387,7]
[355421807,1741131035048,-151.0,0.00027387,7]
[355421808,1741131035058,-151.0,0.00027387,7]
[355421809,1741131035067,-151.0,0.00027387,7]
[355421810,1741131035076,-151.0,0.00027387,7]
[355421811,1741131035086,-152.699397,0.00027387,7]
[355421812,1741131035095,-151.0,0.00027387,7]
[355421813,1741131035105,-151.0,0.00027387,7]
[355421814,1741131035114,-151.0,0.00027387,7]
[355421815,1741131035124,-173.514978,0.00027387,7]
[355421816,1741131035133,-233.151043,0.00027387,7]
[355421817,1741131035143,-233.151043,0.00027387,7]
[355421818,1741131035153,-186.994524,0.00027387,7]
[355421819,1741131035163,-151.0,0.00027387,7]
[355421820,1741131035172,-186.994524,0.00027387,7]
[355421821,1741131035182,-151.0,0.00027387,7]
[355421822,1741131035191,-151.0,0.00027387,7]
[355421823,1741131035201,-301.93332,0.00027387,7]
[355421824,1741131035210,-301.93332,0.00027387,7]
[355421825,1741131035220,-397.551542,0.00027387,7]
[355421826,1741131035230,-257.424856,0.00027387,7]
[355421827,1741131035239,-257.424856,0.00027387,7]
[355421828,1741131035248,-582.640656,0.00027387,7]
[355421829,1741131035258,-582.640656,0.00027387,7]
[355421830,1741131035267,-151.0,0.00027387,7]
[355421831,1741131035276,-151.0,0.00027387,7]
[355421832,1741131035285,-151.0,0.00027387,7]
[355421833,1741131035295,-333.436763,0.00027387,7]
[355421834,1741131035303,-333.436763,0.00027387,7]
[355421835,1741131035313,-151.0,0.00027387,7]
[355421836,1741131035323,-329.724719,0.00027387,7]
[355421837,1741131035332,-390.409575,0.00027387,7]
[355421838,1741131035341,-151.0,0.00027387,7]
[355421839,1741131035351,-151.0,0.00027387,7]
[355421840,1741131035360,-151.0,0.00027387,7]
[355421841,1741131035370,-170.195033,0.00027387,7]
[355421842,1741131035379,-329.724719,0.00027387,7]
[355421843,1741131035389,-390.409575,0.00027387,7]
[355421844,1741131035398,-170.195033,0.00027387,7]
[355421845,1741131035407,-151.0,0.00027387,7]
[355421846,1741131035417,-151.0,0.00027387,7]
[355421847,1741131035426,-151.0,0.00027387,7]
[355421848,1741131035436,-151.0,0.00027387,7]
[355421849,1741131035447,-151.0,0.00027387,7]
[355421850,1741131035458,-283.380464,0.00027387,7]
[355421851,1741131035467,-283.380464,0.00027387,7]
[355421852,1741131035477,-151.0,0.00027387,7]
[355421853,1741131035488,-151.0,0.00027387,7]
[355421854,1741131035497,-694.43459,0.00027387,7]
[355421855,1741131035507,-694.43459,0.00027387,7]
[355421856,1741131035516,-2351.964359,0.00027387,7]
[355421857,1741131035526,-151.0,0.00027387,7]
[355421858,1741131035536,-151.0,0.00027387,7]
[355421859,1741131035546,-151.0,0.00027387,7]
[355421860,1741131035556,-658.579905,0.00027387,7]
[355421861,1741131035566,-658.579905,0.00027387,7]
[355421862,1741131035576,-151.0,0.00027387,7]
[355421863,1741131035586,-183.179677,0.00027387,7]
[355421864,1741131035595,-183.179677,0.00027387,7]
[355421865,1741131035604,-151.0,0.00027387,7]
[355421866,1741131035615,-151.0,0.00027397,7]
[355421867,1741131035625,-151.0,0.00027397,7]
[355421868,1741131035635,-151.0,0.00027397,7]
[355421869,1741131035645,-155.305212,0.00027397,7]
[355421870,1741131035655,-229.935949,0.00027397,7]
[355421871,1741131035664,-229.935949,0.00027397,7]
[355421872,1741131035674,-229.935949,0.00027397,7]
[355421873,1741131035684,-229.935949,0.00027397,7]
[355421874,1741131035694,-197.985848,0.00027397,7]
[355421875,1741131035703,-197.985848,0.00027397,7]
[355421876,1741131035712,-197.985848,0.00027397,7]
[355421877,1741131035722,-197.985848,0.00027397,7]
[355421878,1741131035733,-151.0,0.00027397,7]
[355421879,1741131035743,-156.107658,0.00027397,7]
[355421880,1741131035752,-151.0,0.00027397,7]
[355421881,1741131035762,-151.0,0.00027397,7]
[355421882,1741131035771,-153.981668,0.00027397,7]
[355421883,1741131035781,-241.427172,0.00027397,7]
[355421884,1741131035790,-241.427172,0.00027397,7]
[355421885,1741131035799,-241.427172,0.00027397,7]
[355421886,1741131035810,-241.427172,0.00027397,7]
[355421887,1741131035819,-212.854306,0.00027397,7]
[355421888,1741131035829,-212.854306,0.00027397,7]
[355421889,1741131035838,-212.854306,0.00027397,7]
[355421890,1741131035848,-212.854306,0.00027397,7]
[355421891,1741131035857,-151.528457,0.00027397,7]
[355421892,1741131035866,-151.0,0.00027397,7]
[355421893,1741131035877,-151.0,0.00027397,7]
[355421894,1741131035886,-151.0,0.00027397,7]
[355421895,1741131035896,-151.0,0.00027397,7]
[355421896,1741131035906,-151.0,0.00027397,7]
[355421897,1741131035916,-151.0,0.00027397,7]
[355421898,1741131035925,-237.154734,0.00027397,7]
[355421899,1741131035935,-151.0,0.00027397,7]
[355421900,1741131035945,-151.0,0.00027397,7]
[355421901,1741131035954,-233.151043,0.00027397,7]
[355421902,1741131035964,-233.151043,0.00027397,7]
[355421903,1741131035974,-233.151043,0.00027397,7]
[355421904,1741131035985,-233.151043,0.00027397,7]
[355421905,1741131035994,-186.994524,0.00027397,7]
[355421906,1741131036004,-186.994524,0.00027397,7]
[355421907,1741131036014,-186.994524,0.00027397,7]
[355421908,1741131036024,-151.0,0.00027397,7]
[355421909,1741131036034,-151.0,0.00027397,7]
[355421910,1741131036044,-186.994524,0.00027397,7]
[355421911,1741131036053,-186.994524,0.00027397,7]
[355421912,1741131036063,-186.994524,0.00027397,7]
[355421913,1741131036073,-151.0,0.00027397,7]
[355421914,1741131036083,-151.0,0.00027397,7]
[355421915,1741131036092,-151.0,0.00027397,7]
[355421916,1741131036102,-151.0,0.00027397,7]
[355421917,1741131036111,-151.0,0.00027397,7]
[355421918,1741131036121,-151.0,0.00027397,7]
[355421919,1741131036130,-301.93332,0.00027397,7]
[355421920,1741131036140,-301.93332,0.00027397,7]
[355421921,1741131036150,-301.93332,0.00027397,7]
[355421922,1741131036159,-301.93332,0.00027397,7]
[355421923,1741131036168,-397.551542,0.00027397,7]
[355421924,1741131036178,-397.551542,0.00027397,7]
[355421925,1741131036187,-257.424856,0.00027397,7]
[355421926,1741131036197,-257.424856,0.00027397,7]
[355421927,1741131036206,-257.424856,0.00027397,7]
[355421928,1741131036216,-257.424856,0.00027397,7]
[355421929,1741131036226,-257.424856,0.00027397,7]
[355421930,1741131036235,-257.424856,0.00027397,7]
[355421931,1741131036245,-582.640656,0.00027397,7]
[355421932,1741131036254,-582.640656,0.00027397,7]
[355421933,1741131036263,-582.640656,0.00027397,7]
[355421934,1741131036272,-582.640656,0.00027397,7]
[355421935,1741131036282,-582.640656,0.00027397,7]
[355421936,1741131036292,-582.640656,0.00027397,7]
[355421937,1741131036302,-151.0,0.00027397,7]
[355421938,1741131036312,-151.0,0.00027397,7]
[355421939,1741131036321,-151.0,0.00027397,7]
[355421940,1741131036331,-151.0,0.00027397,7]
[355421941,1741131036341,-151.0,0.00027397,7]
[355421942,1741131036351,-151.0,0.00027397,7]
[355421943,1741131036360,-333.436763,0.00027397,7]
[355421944,1741131036370,-333.436763,0.00027397,7]
[355421945,1741131036380,-333.436763,0.00027397,7]
[355421946,1741131036390,-151.0,0.00027397,7]
[355421947,1741131036400,-151.0,0.00027397,7]
[355421948,1741131036409,-333.436763,0.00027397,7]
[355421949,1741131036419,-151.0,0.00027397,7]
[355421950,1741131036428,-333.436763,0.00027397,7]
[355421951,1741131036439,-390.409575,0.00027397,7]
[355421952,1741131036452,-329.724719,0.00027397,7]
[355421953,1741131036461,-333.436763,0.00027397,7]
[355421954,1741131036471,-390.409575,0.00027397,7]
[355421955,1741131036480,-329.724719,0.00027397,7]
[355421956,1741131036490,-151.0,0.00027397,7]
[355421957,1741131036500,-151.0,0.00027397,7]
[355421958,1741131036509,-151.0,0.00027397,7]
[355421959,1741131036519,-390.409575,0.00027397,7]
[355421960,1741131036644,-151.0,0.00027397,7]
[355421961,1741131036654,-176.3,0.00027397,7]
[355421962,1741131036664,-151.0,0.00027397,7]
[355421963,1741131036674,-170.195033,0.00027397,7]
[355421964,1741131036683,-151.0,0.00027397,7]
[355421965,1741131036693,-170.195033,0.00027397,7]
[355421966,1741131036703,-329.724719,0.00027397,7]
[355421967,1741131036711,-151.936798,0.00027397,7]
[355421968,1741131036721,-329.724719,0.00027397,7]
[355421969,1741131036730,-170.195033,0.00027397,7]
[355421970,1741131036739,-390.409575,0.00027397,7]
[355421971,1741131036748,-390.409575,0.00027397,7]
[355421972,1741131036757,-390.409575,0.00027397,7]
[355421973,1741131036767,-170.195033,0.00027397,7]
[355421974,1741131036776,-170.195033,0.00027397,7]
[355421975,1741131036786,-170.195033,0.00027397,7]